fUST/lending_fUST_20241217
["ID","MTS","AMOUNT","RATE_DAILY","PERIOD"]
[345588824,1734371452382,-500.0,0.00027945,7]
[345588826,1734371452391,-500.0,0.00027945,7]
[345588828,1734371452401,-500.0,0.00027945,7]
[345588831,1734371452410,-500.0,0.00027945,7]
[345588832,1734371452420,-500.0,0.00027945,7]
[345588835,1734371452429,-580.55,0.00027945,7]
[345588837,1734371452447,-500.0,0.00027945,7]
[345588838,1734371452459,-503.98013853,0.00027945,7]
[345588840,1734371452469,-887.07,0.00027945,7]
[345588842,1734371452478,-500.0,0.00027945,7]
[345588844,1734371452488,-500.0,0.00027945,7]
[345588847,1734371452497,-500.0,0.00027945,7]
[345588849,1734371452506,-500.0,0.00027945,7]
[345588851,1734371452515,-500.0,0.00027945,7]
[345588853,1734371452524,-517.10630462,0.00027945,7]
[345588855,1734371452534,-500.0,0.00027945,7]
[345588857,1734371452543,-729.85,0.00027945,7]
[345588859,1734371452552,-500.0,0.00027945,7]
[345588861,1734371452562,-500.0,0.00027945,7]
[345588863,1734371452572,-500.0,0.00027945,7]
[345588865,1734371452581,-500.0,0.00027945,7]
[345588867,1734371452590,-535.26,0.00027945,7]
[345588869,1734371452599,-500.0,0.00027945,7]
[345588871,1734371452609,-500.0,0.00027945,7]
[345588873,1734371452618,-626.50913807,0.00027945,7]
[345588875,1734371452628,-500.0,0.00027945,7]
[345588877,1734371452638,-500.0,0.00027945,7]
[345588879,1734371452647,-523.85,0.00027945,7]
[345588881,1734371452657,-725.83,0.00027945,7]
[345588883,1734371452666,-653.11,0.00027945,7]
[345588885,1734371452676,-196.92877445,0.00027945,7]
[345588887,1734371452685,-565.96137031,0.00027945,7]
[345588889,1734371452700,-500.0,0.00027945,7]
[345588891,1734371452710,-938.93,0.00027945,7]
[345588893,1734371452720,-539.62,0.00027945,7]
[345588895,1734371452730,-500.0,0.00027945,7]
[345588897,1734371452739,-601.68,0.00027945,7]
[345588899,1734371452748,-12209.14,0.00027945,7]
[345588901,1734371452758,-500.0,0.00027945,7]
[345588903,1734371452767,-500.0,0.00027945,7]
[345588905,1734371452777,-500.0,0.00027945,7]
[345588907,1734371452789,-500.0,0.00027945,7]
[345588909,1734371452801,-1935.0,0.00027945,7]
[345588911,1734371452811,-500.0,0.00027945,7]
[345588913,1734371452821,-500.0,0.00027945,7]
[345588915,1734371452832,-500.0,0.00027945,7]
[345588917,1734371452842,-500.0,0.00027945,7]
[345588919,1734371452852,-500.0,0.00027945,7]
[345588921,1734371452863,-1037.74,0.00027945,7]
[345588923,1734371452874,-500.0,0.00027945,7]
[345588925,1734371452883,-500.0,0.00027945,2]
[345588927,1734371452892,-500.0,0.00027945,7]
[345588930,1734371452903,-200.0,0.00027945,7]
[345588932,1734371452912,-500.0,0.00027945,7]
[345588934,1734371452922,-500.0,0.00027945,7]
[345588936,1734371452932,-11178.17,0.00027945,7]
[345588938,1734371452946,-500.0,0.00027945,7]
[345588940,1734371452955,-10872.48,0.00027945,7]
[345588942,1734371452965,-500.0,0.00027945,7]
[345588944,1734371452975,-1971.97,0.00027945,7]
[345588946,1734371452984,-494.939727,0.00027945,7]
[345588948,1734371452994,-500.0,0.00027945,7]
[345588950,1734371453003,-500.0,0.00027945,7]
[345588952,1734371453012,-1274.23,0.00027945,7]
[345588954,1734371453022,-159.99649547,0.00027945,7]
[345588956,1734371453032,-500.0,0.00027945,7]
[345588958,1734371453041,-500.0,0.00027945,7]
[345588960,1734371453051,-500.0,0.00027945,7]
[345588962,1734371453060,-501.11630725,0.00027945,7]
[345588964,1734371453069,-509.3770915,0.00027945,7]
[345588966,1734371453079,-492.98391644,0.00027945,7]
[345588968,1734371453088,-500.0,0.00027945,7]
[345588971,1734371453098,-500.0,0.00027945,7]
[345588973,1734371453109,-500.0,0.00027945,7]
[345588975,1734371453118,-16203.79,0.00027945,7]
[345588977,1734371453127,-500.0,0.00027945,7]
[345588979,1734371453137,-500.0,0.00027945,7]
[345588981,1734371453146,-500.0,0.00027945,7]
[345588983,1734371453155,-500.0,0.00027945,7]
[345588984,1734371453165,-286.13051889,0.00027945,7]
[345588985,1734371453174,-502.75136873,0.00027945,7]
[345588986,1734371453184,-1779.12,0.00027945,7]
[345588987,1734371453197,-500.0,0.00027945,7]
[345588988,1734371453206,-500.0,0.00027945,7]
[345588989,1734371453215,-500.0,0.00027945,7]
[345588990,1734371453224,-2299.4,0.00027945,7]
[345588991,1734371453233,-500.0,0.00027945,7]
[345588992,1734371453243,-743.24,0.00027945,7]
[345588994,1734371453252,-500.0,0.00027945,7]
[345588995,1734371453261,-2422.2,0.00027945,7]
[345588997,1734371453271,-500.0,0.00027945,7]
[345588999,1734371453280,-867.95,0.00027945,7]
[345589002,1734371453290,-500.0,0.00027945,7]
[345589004,1734371453299,-60984.58,0.00027945,7]
[345589006,1734371453308,-500.0,0.00027945,7]
[345589007,1734371453317,-500.0,0.00027945,7]
[345589009,1734371453327,-500.0,0.00027945,7]
[345589011,1734371453337,-500.0,0.00027945,7]
[345589014,1734371453347,-500.0,0.00027945,7]
[345589015,1734371453358,-500.0,0.00027945,7]
[345589018,1734371453368,-500.0,0.00027945,7]
[345589020,1734371453377,-500.0,0.00027945,7]
[345589022,1734371453387,-500.0,0.00027945,7]
[345589024,1734371453397,-3244.58,0.00027945,5]
[345589026,1734371453406,-500.0,0.00027945,7]
[345589028,1734371453415,-515.45,0.00027945,7]
[345589030,1734371453424,-724.1,0.00027945,7]
[345589032,1734371453434,-500.0,0.00027945,7]
[345589034,1734371453447,-685.04,0.00027945,7]
[345589036,1734371453456,-500.0,0.00027945,7]
[345589038,1734371453465,-2826.45,0.00027945,7]
[345589039,1734371453475,-500.0,0.00027945,7]
[345589042,1734371453486,-500.0,0.00027945,7]
[345589044,1734371453496,-500.0,0.00027945,7]
[345589046,1734371453506,-1595.28,0.00027945,7]
[345589048,1734371453515,-500.0,0.00027945,7]
[345589050,1734371453524,-4941.44,0.00027945,7]
[345589052,1734371453534,-2822.8,0.00027945,7]
[345589054,1734371453543,-500.0,0.00027945,7]
[345589056,1734371453554,-500.0,0.00027945,7]
[345589058,1734371453563,-500.0,0.00027945,7]
[345589060,1734371453573,-825.1,0.00027945,7]
[345589062,1734371453582,-500.0,0.00027945,7]
[345589064,1734371453592,-823.06,0.00027945,7]
[345589066,1734371453601,-190.24099304,0.00027945,7]
[345589068,1734371453611,-500.0,0.00027945,7]
[345589070,1734371453622,-500.0,0.00027945,7]
[345589072,1734371453632,-500.0,0.00027945,7]
[345589074,1734371453641,-2956.46,0.00027945,7]
[345589076,1734371453651,-473.36676829,0.00027945,7]
[345589078,1734371453660,-500.0,0.00027945,7]
[345589080,1734371453670,-609.46897635,0.00027945,7]
[345589082,1734371453680,-151.0,0.00027945,7]
[345589085,1734371453692,-500.0,0.00027945,7]
[345589087,1734371453701,-500.0,0.00027945,7]
[345589088,1734371453711,-500.0,0.00027945,7]
[345589090,1734371453720,-500.0,0.00027945,7]
[345589093,1734371453730,-3781.28,0.00027945,7]
[345589095,1734371453740,-510.0,0.00027945,7]
[345589097,1734371453749,-547.82,0.00027945,7]
[345589099,1734371453758,-3056.77,0.00027945,7]
[345589101,1734371453768,-426.62897044,0.00027945,7]
[345589103,1734371453777,-500.0,0.00027945,7]
[345589105,1734371453788,-739.54,0.00027945,2]
[345589107,1734371453799,-628.01,0.00027945,7]
[345589109,1734371453808,-500.0,0.00027945,7]
[345589111,1734371453817,-500.0,0.00027945,7]
[345589113,1734371453826,-500.0,0.00027945,7]
[345589115,1734371453835,-1223.27,0.00027945,7]
[345589117,1734371453845,-756.09,0.00027945,7]
[345589119,1734371453854,-500.0,0.00027945,7]
[345589121,1734371453863,-500.0,0.00027945,7]
[345589123,1734371453872,-563.27,0.00027945,7]
[345589125,1734371453883,-500.0,0.00027945,7]
[345589127,1734371453892,-6440.01,0.00027945,7]
[345589129,1734371453902,-500.0,0.00027945,7]
[345589131,1734371453912,-2439.3,0.00027945,7]
[345589133,1734371453921,-500.0,0.00027945,7]
[345589135,1734371453932,-500.0,0.00027945,2]
[345589137,1734371453943,-1667.7,0.00027945,7]
[345589139,1734371453952,-259.36524562,0.00027945,7]
[345589141,1734371453962,-641.005186,0.00027945,7]
[345589143,1734371453971,-641.005186,0.00027945,7]
[345589145,1734371453981,-500.0,0.00027945,7]
[345589147,1734371453991,-909.66,0.00027945,7]
[345589149,1734371454000,-660.39,0.00027945,7]
[345589151,1734371454010,-500.0,0.00027945,7]
[345589153,1734371454020,-500.0,0.00027945,7]
[345589155,1734371454029,-374.16031504,0.00027945,7]
[345589157,1734371454039,-153.0,0.00027953,2]
[345589160,1734371454049,-153.0,0.00027953,2]
[345589161,1734371454059,-153.0,0.00027953,2]
[345589163,1734371454069,-153.0,0.00027953,2]
[345589166,1734371454079,-153.0,0.00027953,2]
[345589167,1734371454088,-153.0,0.00027953,2]
[345589169,1734371454098,-153.0,0.00027953,2]
[345589171,1734371454107,-153.0,0.00027953,2]
[345589174,1734371454118,-153.0,0.00027953,2]
[345589176,1734371454128,-153.0,0.00027953,2]
[345589178,1734371454137,-153.0,0.00027953,2]
[345589180,1734371454147,-153.0,0.00027953,2]
[345589182,1734371454156,-153.0,0.00027953,2]
[345589184,1734371454166,-153.0,0.00027953,2]
[345589186,1734371454175,-153.0,0.00027955,2]
[345589188,1734371454184,-153.0,0.00027955,2]
[345589190,1734371454196,-153.0,0.00027955,2]
[345589192,1734371454206,-153.0,0.00027955,2]
[345589194,1734371454215,-153.0,0.00027955,2]
[345589196,1734371454225,-153.0,0.00027955,2]
[345589198,1734371454234,-153.0,0.00027955,2]
[345589214,1734371454377,-153.0,0.00027955,2]
[345589216,1734371454387,-153.0,0.00027955,2]
[345589218,1734371454397,-153.0,0.00027955,2]
[345589220,1734371454406,-153.0,0.00027955,2]
[345589222,1734371454416,-153.0,0.00027955,2]
[345589224,1734371454425,-1018.65017898,0.0002799,2]
[345589226,1734371454435,-1174.32277874,0.0002799,7]
[345589228,1734371454446,-811.09742664,0.00027999,120]
[345589230,1734371454455,-1999.999999,0.00028,2]
[345589232,1734371454464,-500.0,0.00028,120]
[345589234,1734371454475,-1000.0,0.00028,28]
[345589236,1734371454484,-20018.26447579,0.00028,2]
[345589238,1734371454493,-5000.0,0.00028,2]
[345589240,1734371454504,-5000.0,0.00028,2]
[345589242,1734371454514,-5000.0,0.00028,2]
[345589244,1734371454523,-1000.0,0.00028,2]
[345589246,1734371454532,-1000.0,0.00028,2]
[345589248,1734371454542,-1000.0,0.00028,2]
[345589251,1734371454553,-439.69,0.00028,2]
[345589253,1734371454562,-13738.93870586,0.00028,7]
[345589255,1734371454571,-151.0,0.00028,7]
[345589257,1734371454580,-151.0,0.00028,7]
[345589259,1734371454589,-5660.0,0.00028,3]
[345589261,1734371454599,-15441.73,0.00028,2]
[345589263,1734371454608,-151.0,0.00028,7]
[345589265,1734371454618,-151.0,0.00028,7]
[345589267,1734371454627,-151.0,0.00028,7]
[345589269,1734371454637,-151.0,0.00028,7]
[345589271,1734371454646,-151.0,0.00028,7]
[345589273,1734371454656,-222.410124,0.00028,7]
[345589275,1734371454665,-222.410124,0.00028,7]
[345589277,1734371454675,-151.0,0.00028,7]
[345589279,1734371454685,-151.0,0.00028,7]
[345589280,1734371454696,-312.398388,0.00028,7]
[345589281,1734371454705,-312.398388,0.00028,7]
[345589282,1734371454714,-151.0,0.00028,7]
[345589283,1734371454724,-151.0,0.00028,7]
[345589284,1734371454733,-615390.83913795,0.00028,2]
[345589285,1734371454931,-750.648911,0.00028,2]
[345589286,1734371454949,-11860.00000611,0.00028,2]
[345589300,1734371455200,-2717.999996,0.00028,2]
[345589302,1734371455211,-5352.5,0.00028,2]
[345589320,1734371520418,166.680225,0.00013973,2]
[345589330,1734371867728,6704.5326032,0.0002,30]
[345589342,1734372007419,1103.380887,0.00019568,2]
[345589344,1734372195398,3988.25611041,0.0002101,2]
[345589347,1734372583167,166.680225,0.00013973,2]
[345589371,1734372636831,-1268.5062733,0.00021399,2]
[345589373,1734372636841,-16943.7395179,0.00021444,2]
[345589375,1734372636854,-18.65201884,0.00021444,2]
[345589377,1734372636863,-300.0,0.00021544,2]
[345589379,1734372636872,-300.0,0.00021544,2]
[345589381,1734372636881,-1320.66992619,0.00021545,2]
[345589383,1734372636893,-8996.70435791,0.00021545,2]
[345589385,1734372636911,-438.03572402,0.00022,2]
[345589387,1734372636929,-250.0,0.00022049,2]
[345589389,1734372636938,-967.9263791,0.00022049,2]
[345589391,1734372636947,-194.75827075,0.00022191,2]
[345589393,1734372636957,-1901.8303496,0.00022191,2]
[345589395,1734372636967,-16342.8171761,0.00022226,2]
[345589406,1734372637154,-201.5906806,0.00022291,2]
[345589407,1734372637167,-290.917715,0.00022311,2]
[345589408,1734372637177,-168.7665701,0.0002237,2]
[345589409,1734372637187,-1443.93915033,0.0002237,2]
[345589410,1734372637196,-195.84984155,0.00022659,2]
[345589411,1734372637207,-1000.0,0.00023,23]
[345589412,1734372637217,-16877.6633698,0.0002306,2]
[345589413,1734372637226,-1901.83034956,0.00023244,2]
[345589414,1734372637238,-420.0,0.00023422,2]
[345589415,1734372637247,-166.680225,0.00023435,2]
[345589416,1734372637257,-175.710541,0.00023622,2]
[345589417,1734372637267,-420.0,0.00023698,2]
[345589418,1734372637279,-170.105896,0.00023785,2]
[345589419,1734372637289,-157.62,0.00023832,2]
[345589420,1734372637298,-24900.0,0.00023842,2]
[345589421,1734372637307,-1000.0,0.00024,24]
[345589422,1734372637317,-500.58218895,0.00024066,2]
[345589423,1734372637327,-1901.83034956,0.00024298,2]
[345589424,1734372637337,-170.105896,0.00024675,2]
[345589425,1734372637347,-1000.0,0.00025,25]
[345589426,1734372637357,-1901.83034956,0.00025351,2]
[345589427,1734372637367,-164.924,0.00025409,10]
[345589428,1734372637379,-587.0,0.00025464,2]
[345589429,1734372637388,-3000.0,0.0002556,2]
[345589430,1734372637397,-3000.0,0.0002556,2]
[345589431,1734372637412,-3000.0,0.0002556,2]
[345589432,1734372637421,-170.105896,0.00025564,2]
[345589433,1734372637431,-291.619418,0.00025753,2]
[345589434,1734372637441,-533.0,0.00025916,2]
[345589435,1734372637450,-2154.0,0.00025916,2]
[345589436,1734372637460,-2368.0,0.00025916,2]
[345589437,1734372637470,-1000.0,0.00026,26]
[345589438,1734372637479,-587.0,0.00026068,2]
[345589439,1734372637488,-184.76118112,0.00026143,2]
[345589440,1734372637497,-1901.83034956,0.00026405,2]
[345589441,1734372637507,-3000.0,0.000265,2]
[345589442,1734372637516,-3000.0,0.0002651,2]
[345589443,1734372637525,-3000.0,0.0002652,2]
[345589444,1734372637535,-3000.0,0.0002653,2]
[345589445,1734372637544,-3000.0,0.0002654,2]
[345589446,1734372637553,-3000.0,0.0002655,2]
[345589447,1734372637563,-3000.0,0.0002656,2]
[345589448,1734372637573,-3000.0,0.0002657,2]
[345589449,1734372637582,-3000.0,0.0002658,2]
[345589450,1734372637592,-3000.0,0.0002659,2]
[345589451,1734372637602,-3000.0,0.000266,2]
[345589452,1734372637611,-499.37,0.000266,2]
[345589453,1734372637621,-663.15911379,0.0002661,2]
[345589454,1734372637636,-516.68000435,0.0002661,2]
[345589456,1734372637649,-1820.16088186,0.0002661,2]
[345589458,1734372637661,-3405.67232,0.0002662,2]
[345589459,1734372637671,-291.619418,0.00026706,2]
[345589460,1734372637682,-1000.0,0.00027,27]
[345589461,1734372637692,-184.0,0.00027,2]
[345589462,1734372637701,-500.0,0.00027,30]
[345589463,1734372637711,-500.0,0.00027,30]
[345589464,1734372637721,-500.0,0.00027,30]
[345589465,1734372637730,-500.0,0.00027,30]
[345589466,1734372637740,-500.0,0.00027,30]
[345589467,1734372637750,-500.0,0.00027,30]
[345589468,1734372637760,-500.0,0.00027,30]
[345589469,1734372637770,-500.0,0.00027,30]
[345589470,1734372637781,-169.19413874,0.00027297,2]
[345589471,1734372637790,-500.0,0.00027372,2]
[345589472,1734372637800,-500.0,0.00027372,2]
[345589473,1734372637809,-500.0,0.00027372,2]
[345589474,1734372637819,-500.0,0.00027372,2]
[345589475,1734372637828,-500.0,0.00027372,2]
[345589476,1734372637838,-500.0,0.00027372,2]
[345589478,1734372637848,-355.47016354,0.00027372,2]
[345589480,1734372637858,-506.34063067,0.00027373,2]
[345589481,1734372637868,-500.0,0.00027373,2]
[345589483,1734372637877,-500.0,0.00027373,2]
[345589484,1734372637887,-3235.08217225,0.00027387,10]
[345589485,1734372637897,-573.12393194,0.00027397,7]
[345589486,1734372637911,-500.0,0.00027397,7]
[345589487,1734372637921,-500.0,0.00027397,7]
[345589488,1734372637931,-500.0,0.00027397,7]
[345589489,1734372637943,-500.0,0.00027397,7]
[345589490,1734372637952,-500.0,0.00027397,7]
[345589491,1734372637962,-500.0,0.00027397,7]
[345589492,1734372637971,-500.0,0.00027397,7]
[345589493,1734372637981,-500.0,0.00027397,7]
[345589494,1734372637991,-500.0,0.00027397,7]
[345589496,1734372638000,-500.0,0.00027397,7]
[345589497,1734372638010,-500.0,0.00027397,7]
[345589498,1734372638020,-500.0,0.00027397,7]
[345589499,1734372638030,-500.0,0.00027397,7]
[345589500,1734372638039,-500.0,0.00027397,7]
[345589501,1734372638049,-500.0,0.00027397,7]
[345589502,1734372638059,-500.0,0.00027397,7]
[345589503,1734372638069,-517.45469252,0.00027397,7]
[345589504,1734372638079,-470.46179264,0.00027397,7]
[345589505,1734372638088,-500.0,0.00027397,7]
[345589506,1734372638097,-500.0,0.00027397,7]
[345589507,1734372638107,-500.0,0.00027397,7]
[345589508,1734372638116,-500.0,0.00027397,7]
[345589509,1734372638126,-500.0,0.00027397,7]
[345589510,1734372638136,-590.5893902,0.00027397,7]
[345589511,1734372638144,-503.05581639,0.00027397,7]
[345589512,1734372638164,-500.0,0.00027397,7]
[345589513,1734372638173,-500.0,0.00027397,2]
[345589514,1734372638183,-268.91709207,0.00027397,7]
[345589515,1734372638194,-500.0,0.00027397,7]
[345589516,1734372638204,-503.79406505,0.00027397,7]
[345589517,1734372638214,-500.0,0.00027397,7]
[345589518,1734372638223,-500.0,0.00027397,7]
[345589519,1734372638233,-500.0,0.00027397,7]
[345589520,1734372638242,-503.7,0.00027397,7]
[345589521,1734372638252,-500.0,0.00027397,7]
[345589522,1734372638261,-500.0,0.00027397,7]
[345589523,1734372638270,-500.0,0.00027397,7]
[345589524,1734372638280,-500.0,0.00027397,7]
[345589525,1734372638289,-577.84,0.00027397,7]
[345589526,1734372638299,-638.62,0.00027397,7]
[345589527,1734372638309,-795.96,0.00027397,7]
[345589528,1734372638319,-1332.08,0.00027397,7]
[345589529,1734372638328,-500.0,0.00027397,7]
[345589530,1734372638338,-500.0,0.00027397,7]
[345589531,1734372638347,-627.44,0.00027397,7]
[345589532,1734372638357,-632.8,0.00027397,7]
[345589533,1734372638366,-500.0,0.00027397,7]
[345589534,1734372638375,-500.0,0.00027397,7]
[345589535,1734372638385,-500.0,0.00027397,7]
[345589536,1734372638395,-843.97,0.00027397,7]
[345589537,1734372638404,-500.0,0.00027397,7]
[345589538,1734372638419,-500.0,0.00027397,7]
[345589539,1734372638430,-500.0,0.00027397,7]
[345589540,1734372638439,-1738.3,0.00027397,7]
[345589541,1734372638449,-354.27671386,0.00027397,7]
[345589542,1734372638459,-500.0,0.00027397,7]
[345589543,1734372638468,-500.0,0.00027397,7]
[345589544,1734372638477,-500.0,0.00027397,7]
[345589545,1734372638487,-500.0,0.00027397,7]
[345589546,1734372638496,-500.0,0.00027397,7]
[345589547,1734372638506,-500.0,0.00027397,7]
[345589548,1734372638515,-500.0,0.00027397,7]
[345589549,1734372638524,-500.0,0.00027397,7]
[345589550,1734372638534,-500.0,0.00027397,7]
[345589551,1734372638544,-500.0,0.00027397,7]
[345589552,1734372638554,-500.0,0.00027397,7]
[345589553,1734372638566,-500.0,0.00027397,2]
[345589554,1734372638575,-704.01,0.00027397,7]
[345589555,1734372638586,-500.0,0.00027397,7]
[345589556,1734372638596,-321.42050305,0.00027397,7]
[345589557,1734372638605,-500.0,0.00027397,7]
[345589558,1734372638615,-500.0,0.00027397,7]
[345589559,1734372638632,-500.0,0.00027397,7]
[345589560,1734372638644,-937.05,0.00027397,7]
[345589561,1734372638658,-452.05456289,0.00027397,7]
[345589562,1734372638667,-500.0,0.00027397,7]
[345589563,1734372638677,-200.0,0.00027397,7]
[345589564,1734372638686,-1629.6,0.00027397,7]
[345589565,1734372638694,-500.0,0.00027397,7]
[345589566,1734372638703,-568.02470503,0.00027397,7]
[345589567,1734372638713,-500.0,0.00027397,7]
[345589568,1734372638722,-168.0,0.00027397,7]
[345589569,1734372638732,-500.0,0.00027397,7]
[345589570,1734372638741,-500.0,0.00027397,7]
[345589571,1734372638750,-519.52993792,0.00027397,7]
[345589572,1734372638759,-500.0,0.00027397,7]
[345589573,1734372638770,-192.06133922,0.00027397,7]
[345589574,1734372638779,-410.81920512,0.00027397,7]
[345589575,1734372638788,-1369.67,0.00027397,7]
[345589576,1734372638798,-643.85,0.00027397,7]
[345589577,1734372638808,-619.70338566,0.00027397,7]
[345589578,1734372638817,-500.0,0.00027397,7]
[345589579,1734372638827,-500.0,0.00027397,7]
[345589580,1734372638836,-500.0,0.00027397,7]
[345589581,1734372638846,-500.0,0.00027397,7]
[345589582,1734372638855,-500.0,0.00027397,7]
[345589583,1734372638865,-2092.07,0.00027397,2]
[345589584,1734372638875,-650.33,0.00027397,7]
[345589585,1734372638886,-500.0,0.00027397,7]
[345589586,1734372638895,-662.07,0.00027397,7]
[345589587,1734372638909,-500.0,0.00027397,7]
[345589588,1734372638919,-500.0,0.00027397,7]
[345589589,1734372638928,-856.23,0.00027397,7]
[345589590,1734372638937,-901.58,0.00027397,7]
[345589591,1734372638947,-500.0,0.00027397,7]
[345589593,1734372638956,-500.0,0.00027397,7]
[345589595,1734372638966,-500.0,0.00027397,7]
[345589597,1734372638976,-500.0,0.00027397,7]
[345589599,1734372638985,-500.0,0.00027397,7]
[345589601,1734372638994,-500.0,0.00027397,7]
[345589603,1734372639004,-1112.31,0.00027397,7]
[345589605,1734372639013,-597.09764634,0.00027397,7]
[345589608,1734372639024,-521.25,0.00027397,7]
[345589610,1734372639033,-500.0,0.00027397,7]
[345589612,1734372639043,-721.96,0.00027397,7]
[345589614,1734372639052,-500.0,0.00027397,7]
[345589616,1734372639061,-500.0,0.00027397,7]
[345589618,1734372639070,-500.0,0.00027397,7]
[345589620,1734372639079,-500.0,0.00027397,7]
[345589622,1734372639089,-500.0,0.00027397,7]
[345589624,1734372639098,-500.0,0.00027397,7]
[345589626,1734372639108,-2238.47,0.00027397,7]
[345589628,1734372639117,-500.0,0.00027397,7]
[345589630,1734372639126,-500.0,0.00027397,7]
[345589632,1734372639136,-500.0,0.00027397,7]
[345589634,1734372639145,-741.69,0.00027397,7]
[345589636,1734372639159,-1000.0,0.00027397,2]
[345589637,1734372639169,-500.0,0.00027397,7]
[345589639,1734372639178,-500.0,0.00027397,7]
[345589641,1734372639188,-638.63,0.00027397,7]
[345589644,1734372639198,-500.0,0.00027397,7]
[345589645,1734372639208,-714.0,0.00027397,7]
[345589647,1734372639217,-963.83,0.00027397,7]
[345589650,1734372639227,-500.0,0.00027397,2]
[345589652,1734372639239,-500.0,0.00027397,7]
[345589654,1734372639249,-500.0,0.00027397,7]
[345589656,1734372639260,-528.98,0.00027397,7]
[345589658,1734372639269,-500.0,0.00027397,7]
[345589660,1734372639278,-1230.95,0.00027397,7]
[345589662,1734372639287,-349.67195882,0.00027397,7]
[345589664,1734372639297,-500.0,0.00027397,2]
[345589666,1734372639307,-500.0,0.00027397,7]
[345589668,1734372639315,-500.0,0.00027397,7]
[345589670,1734372639325,-500.0,0.00027397,7]
[345589672,1734372639334,-500.0,0.00027397,7]
[345589674,1734372639343,-500.0,0.00027397,7]
[345589676,1734372639352,-500.0,0.00027397,7]
[345589678,1734372639361,-500.0,0.00027397,7]
[345589680,1734372639370,-776.19,0.00027397,7]
[345589682,1734372639380,-662.08,0.00027397,7]
[345589684,1734372639389,-500.0,0.00027397,7]
[345589686,1734372639399,-500.0,0.00027397,7]
[345589687,1734372639414,-500.0,0.00027397,7]
[345589690,1734372639423,-229.41659679,0.00027397,7]
[345589692,1734372639432,-500.0,0.00027397,7]
[345589693,1734372639442,-500.0,0.00027397,7]
[345589695,1734372639451,-500.0,0.00027397,7]
[345589697,1734372639460,-500.0,0.00027397,7]
[345589700,1734372639469,-500.0,0.00027397,7]
[345589702,1734372639479,-500.0,0.00027397,7]
[345589704,1734372639488,-500.0,0.00027397,7]
[345589706,1734372639498,-500.0,0.00027397,7]
[345589708,1734372639507,-500.0,0.00027397,7]
[345589710,1734372639516,-611.06926295,0.00027397,7]
[345589712,1734372639527,-500.0,0.00027397,7]
[345589714,1734372639537,-500.0,0.00027397,7]
[345589716,1734372639546,-500.0,0.00027397,7]
[345589718,1734372639555,-500.0,0.00027397,7]
[345589720,1734372639566,-500.0,0.00027397,7]
[345589722,1734372639575,-500.0,0.00027397,7]
[345589724,1734372639585,-500.0,0.00027397,7]
[345589728,1734372639606,-500.0,0.00027397,7]
[345589730,1734372639615,-1777.27,0.00027397,7]
[345589732,1734372639625,-500.0,0.00027397,7]
[345589734,1734372639634,-10683.0,0.00027397,7]